[Event "Dutch Open 2022"]
[Site "Dieren"]
[Date "2022.07.28"]
[Round "3.16"]
[White "Baselmans, Luuk"]
[Black "Kohler, Aran"]
[Result "1-0"]
[ECO "B11"]
[WhiteElo "2256"]
[BlackElo "2121"]
[Annotator "TA"]
[PlyCount "89"]
[EventDate "2022.07.14"]
[EventType "swiss"]
[EventCountry "NED"]
[SourceTitle "playchess.com"]
[Source "ChessBase"]
[SourceQuality "1"]
[TimeControl "40/5400+30:1800+30"]

{[%evp 12,88,16,21,33,33,56,46,60,59,61,61,68,65,62,64,61,66,85,97,124,134,155,85,103,95,229,239,252,223,285,285,586,589,582,577,626,633,654,566,527,367,323,23,41,0,109,106,137,58,48,62,237,221,346,291,469,431,557,413,382,330,292,200,410,277,609,264,1015,1032,1275,1097,1684,1626,1581,1507,1495,1441,29999]} 1. e4 {[%emt 0:00:05]} c6 {[%emt 0:01:30]} 2. Nc3 {[%emt 0:00:44]} d5 {[%emt 0:00:14]} 3. Nf3 {[%emt 0:00:07]} Bg4 {[%emt 0:00:17]} 4. h3 {[%emt 0:00:06]} Bxf3 {[%emt 0:01:35]} 5. Qxf3 {[%emt 0:00:06]} e6 {[%emt 0:00:11]} 6. d3 {[%emt 0:00:15]} Nf6 {[%emt 0:01:05]} 7. Bd2 {[%emt 0:03:56]} Nbd7 {[%emt 0:01:44] B11: Caro-Kann: Two Knights Variation.} 8. O-O-O {[%emt 0:00:47]} d4 {[%emt 0:02:37]} 9. Ne2 {[%emt 0:00:51]} c5 {[%emt 0:02:44] White is slightly better.} 10. g4 {[%emt 0:02:01]} Ne5 {[%emt 0:00:38]} 11. Qg3 {[%emt 0:02:24]} Nfd7 {[%emt 0:00:10]} 12. f4 {[%emt 0:02:05]} Nc6 {[%emt 0:00:13] [#]} 13. g5 $146 {[%emt 0:06:30]} ({Predecessor:} 13. e5 Be7 14. Bg2 Nb6 15. f5 Qd7 16. Rhf1 O-O-O 17. Kb1 Rdf8 18. Nf4 Bd8 19. Nh5 {1-0 (36) Pomar Salamanca,A-Ruiz Gutierrez,M Malaga 1967}) 13... Qc7 {[%emt 0:01:10]} 14. h4 {[%emt 0:06:28][%cal Bh3h4,Bh4h5][%mdl 32]} b5 {[%emt 0:08:53]} 15. h5 {[%emt 0:03:19]} O-O-O {[%emt 0:01:37]} 16. Bh3 {[%emt 0:01:10]} c4 {[%emt 0:03:30]} 17. Kb1 {[%emt 0:01:02]} (17. g6 $142 $1) 17... Nc5 $16 {[%emt 0:00:18]} 18. g6 {[%emt 0:01:22]} Kb7 {[%emt 0:03:27]} (18... b4 $16 {was worth a try.}) 19. gxf7 $18 {[%emt 0:01:41]} Qxf7 {[%emt 0:01:38]} 20. Bg2 {[%emt 0:03:59]} Kb6 {[%emt 0:01:21]} 21. e5 {[%emt 0:05:17] aiming for dxc4.} Qd7 $2 {[%emt 0:02:50]} (21... Qc7 {is more resistant.} 22. Be1 cxd3) 22. dxc4 {[%emt 0:08:23]} bxc4 {[%emt 0:00:25] [#]} 23. Be3 $1 {[%emt 0:01:59][%mdl 512]} d3 {[%emt 0:01:07]} (23... Ka6 24. Nxd4) 24. cxd3 {[%emt 0:00:33]} Nb4 {[%emt 0:01:49]} 25. Nc3 {[%emt 0:08:54]} Nbxd3 {[%emt 0:08:20]} 26. Qf3 {[%emt 0:00:23]} Ka5 {[%emt 0:00:43]} 27. Ne4 $2 {[%emt 0:05:12]} ({White should play} 27. f5 $18) 27... Qb5 {[%emt 0:09:09][%csl Gd3][%cal Rb5b2]} 28. Qe2 {[%emt 0:01:36] Strongly threatening Qc2.} Nxe4 {[%emt 0:04:14]} (28... Na4 $1 $11) 29. Bxe4 $16 {[%emt 0:00:21] Dancing on a razor blade.} Ba3 {[%emt 0:01:55][%cal Ra3b2] [#]} 30. Bd2+ {[%emt 0:03:22]} (30. Rd2 $1 $16) 30... Ka6 $14 {[%emt 0:01:38][%csl Ga3,Gd3][%cal Rb5b2]} 31. Bc3 $36 {[%emt 0:00:06][%mdl 2048] White is pushing.} Rd7 $2 {[%emt 0:01:47] [#]} ({Black should try} 31... Nxf4 $14 32. Qc2 Rhf8) 32. Ka1 $1 $18 {[%emt 0:01:17]} Bc5 {[%emt 0:01:35]} (32... Bb4 {keeps fighting.} 33. Bxb4 Qxb4) 33. f5 {[%emt 0:08:32]} Rhd8 $2 {[%emt 0:05:20]} (33... exf5 34. Bxf5 Rd5) 34. fxe6 {[%emt 0:01:45]} Nf4 {[%emt 0:03:15]} 35. Qf3 {[%emt 0:00:31]} (35. Rxd7 $2 Nxe2 36. Rxd8 Nxc3 37. bxc3 Qa5 $19) 35... Nxe6 {[%emt 0:00:22]} 36. Rxd7 {[%emt 0:00:41]} Qxd7 {[%emt 0:00:21]} 37. Qe2 {[%emt 0:03:52]} (37. Bxh7 $6 Ng5 38. Qf5 Nxh7 39. Qg6+ (39. Qxh7 Qd3 $18) 39... Bb6 $18) 37... Qb5 {[%emt 0:08:26]} (37... Nd4 38. Qg2 (38. Qxc4+ Qb5 $16) 38... Qe7 39. Bxh7 Qxe5) 38. Bxh7 {[%emt 0:00:19] Hoping for h6. A strong pair of Bishops.} Bd4 $2 {[%emt 0:02:51]} (38... Nf4 39. Qg4 Nd5) 39. Rc1 {[%emt 0:02:29]} (39. Qg4 $142 Qc6 40. Be4) 39... Rd5 $2 {[%emt 0:04:36]} (39... Bxc3 40. Rxc3 Kb6) 40. Qg4 {[%emt 0:05:00]} Qb6 {[%emt 0:02:35]} 41. Bg8 {[%emt 0:31:41]} Bxc3 {[%emt 0:34:27]} 42. Qxc4+ {[%emt 0:00:39]} Qb5 {[%emt 0:00:34]} 43. Qc8+ {[%emt 0:02:15]} Ka5 {[%emt 0:03:40]} 44. Qxc3+ {[%emt 0:00:10]} Ka4 {[%emt 0:00:01]} 45. Qa3# {[%emt 0:00:47] Weighted Error Value: White=0.46/Black=0.89} 1-0

[Event "Dutch Open 2022"]
[Site "Dieren"]
[Date "2022.07.28"]
[Round "3.17"]
[White "Vogel, Jaap"]
[Black "Roorda, Thijs"]
[Result "1/2-1/2"]
[ECO "A96"]
[WhiteElo "2147"]
[BlackElo "2113"]
[Annotator "TA"]
[PlyCount "33"]
[EventDate "2022.07.14"]
[EventType "swiss"]
[EventCountry "NED"]
[SourceTitle "playchess.com"]
[Source "ChessBase"]
[SourceQuality "1"]
[TimeControl "40/5400+30:1800+30"]

{[%evp 13,33,41,38,62,48,35,33,47,32,34,24,30,42,32,26,0,20,0,42,54,43,22]} 1. d4 {[%emt 0:00:01]} e6 {[%emt 0:00:05]} 2. Nf3 {[%emt 0:00:15]} f5 {[%emt 0:00:06]} 3. g3 {[%emt 0:00:18]} Nf6 {[%emt 0:00:06]} 4. Bg2 {[%emt 0:00:05]} Be7 {[%emt 0:00:05]} 5. O-O {[%emt 0:00:06]} O-O {[%emt 0:00:06]} 6. c4 {[%emt 0:00:15]} d6 {[%emt 0:00:07]} 7. Nc3 {[%emt 0:00:05]} Ne4 {[%emt 0:00:05]} 8. Nxe4 {[%emt 0:04:34] A96: Classical Dutch: Fluid Systems: Early deviations.} fxe4 {[%emt 0:00:26]} 9. Nd2 {[%emt 0:00:04]} (9. Ne1 $5 {[%cal Rg2e4]}) 9... d5 {[%emt 0:00:05]} 10. f3 {[%emt 0:00:08]} Nc6 {[%emt 0:00:08]} 11. fxe4 {[%emt 0:00:29] Strongly threatening e3.} Rxf1+ {[%emt 0:00:07]} 12. Nxf1 {[%emt 0:00:41][%cal Rc4d5]} dxc4 {[%emt 0:04:45]} 13. Be3 {[%emt 0:01:03]} Bd7 {[%emt 0:04:30]} 14. e5 {[%emt 0:03:51]} Rb8 {[%emt 0:13:08]} 15. Rc1 {[%emt 0:15:29]} Be8 {[%emt 0:05:39] [#]} 16. Rxc4 $146 {[%emt 0:15:13]} ({Predecessor:} 16. Be4 b5 17. b3 cxb3 18. Bxc6 Bxc6 19. Rxc6 bxa2 20. Qa1 b4 21. Qxa2 b3 22. Qb1 {1-0 (46) Stefanova,A (2522)-O'Grady,G (1894) England 2015}) 16... Nxe5 $1 {[%emt 0:00:15]} 17. Rc1 {[%emt 0:00:21] Weighted Error Value: White=0.06 (flawless) /Black=0.07 (flawless)} 1/2-1/2